[Event "*** Titled Tuesday Blitz"]
[Site "Chess.com"]
[Date "2019.04.02"]
[Round "4"]
[White "Robin-Side"]
[Black "kuli4ik"]
[Result "0-1"]
[WhiteElo "2556"]
[BlackElo "2778"]
[TimeControl "180+2"]
[EndTime "14:50:33 PDT"]
[Termination "kuli4ik won by resignation"]

1. d4 {[%clk 0:03:01.9]} 1... g6 {[%clk 0:02:58]} 2. e4 {[%clk 0:03:02.6]} 2...
Bg7 {[%clk 0:02:58.3]} 3. Nc3 {[%clk 0:03:04]} 3... a6 {[%clk 0:02:59.2]} 4. a4
{[%clk 0:03:02.5]} 4... d6 {[%clk 0:02:59.7]} 5. Be2 {[%clk 0:03:03.1]} 5... Nd7
{[%clk 0:02:58.8]} 6. Be3 {[%clk 0:02:58.3]} 6... b6 {[%clk 0:02:59.5]} 7. Qd2
{[%clk 0:02:57.2]} 7... Bb7 {[%clk 0:03:00.5]} 8. f3 {[%clk 0:02:51.9]} 8... e6
{[%clk 0:03:00.5]} 9. Nh3 {[%clk 0:02:52.4]} 9... h6 {[%clk 0:03:01.2]} 10. O-O
{[%clk 0:02:53.1]} 10... Ne7 {[%clk 0:03:02]} 11. Nd1 {[%clk 0:02:46.7]} 11...
c5 {[%clk 0:02:49.1]} 12. c3 {[%clk 0:02:46.8]} 12... Qc7 {[%clk 0:02:49.4]} 13.
Ndf2 {[%clk 0:02:47]} 13... Rd8 {[%clk 0:02:49.5]} 14. Nd3 {[%clk 0:02:47.7]}
14... Nc6 {[%clk 0:02:47.4]} 15. d5 {[%clk 0:02:40.1]} 15... exd5 {[%clk
0:02:46.4]} 16. exd5 {[%clk 0:02:42]} 16... Ne7 {[%clk 0:02:45.9]} 17. c4 {[%clk
0:02:42.8]} 17... Nf5 {[%clk 0:02:45.6]} 18. Bf4 {[%clk 0:02:38.9]} 18... Nf6
{[%clk 0:02:31.3]} 19. g4 {[%clk 0:02:29.8]} 19... Nd4 {[%clk 0:02:28.9]} 20.
Rae1 {[%clk 0:02:22.2]} 20... Kf8 {[%clk 0:02:28.4]} 21. Bd1 {[%clk 0:02:17.8]}
21... b5 {[%clk 0:02:22]} 22. axb5 {[%clk 0:02:17.2]} 22... axb5 {[%clk
0:02:22.5]} 23. b3 {[%clk 0:02:18.1]} 23... Kg8 {[%clk 0:02:16.1]} 24. Nhf2
{[%clk 0:02:03.2]} 24... bxc4 {[%clk 0:02:13.2]} 25. bxc4 {[%clk 0:02:03.8]}
25... Ba6 {[%clk 0:02:14.1]} 26. Qc1 {[%clk 0:01:56.7]} 26... Kh7 {[%clk
0:02:08.6]} 27. Kg2 {[%clk 0:01:55.5]} 27... Rhe8 {[%clk 0:02:08.2]} 28. Rxe8
{[%clk 0:01:39.5]} 28... Rxe8 {[%clk 0:02:10.1]} 29. Re1 {[%clk 0:01:41]} 29...
Rxe1 {[%clk 0:02:07]} 30. Nxe1 {[%clk 0:01:42.9]} 30... Nd7 {[%clk 0:02:02.1]}
31. Ne4 {[%clk 0:01:42.4]} 31... Ne5 {[%clk 0:01:59.1]} 32. Bxe5 {[%clk
0:01:28.8]} 32... Bxe5 {[%clk 0:01:59.8]} 33. Nd3 {[%clk 0:01:28.1]} 33... Bg7
{[%clk 0:02:00.3]} 34. Nf4 {[%clk 0:01:12.4]} 34... Qe7 {[%clk 0:01:50.8]} 35.
Ne2 {[%clk 0:01:06.6]} 35... f5 {[%clk 0:01:39.2]} 36. Nxd4 {[%clk 0:00:53.3]}
36... fxe4 {[%clk 0:01:35.8]} 37. Ne6 {[%clk 0:00:51.5]} 37... exf3+ {[%clk
0:01:36]} 38. Bxf3 {[%clk 0:00:53.4]} 38... Be5 {[%clk 0:01:36.7]} 39. Qc2
{[%clk 0:00:43.8]} 39... Qh4 {[%clk 0:01:33.8]} 40. Kg1 {[%clk 0:00:21.5]} 40...
Qh3 {[%clk 0:01:03.9]} 41. Nf8+ {[%clk 0:00:15.9]} 41... Kg7 {[%clk 0:01:03.8]}
42. Ne6+ {[%clk 0:00:13]} 42... Kh7 {[%clk 0:01:02.8]} 43. Nf8+ {[%clk
0:00:13.2]} 43... Kg8 {[%clk 0:01:00.3]} 44. Qxg6+ {[%clk 0:00:10.8]} 44... Kxf8
{[%clk 0:01:00.9]} 45. Qf5+ {[%clk 0:00:11.2]} 45... Ke7 {[%clk 0:00:59.1]} 46.
Qe6+ {[%clk 0:00:12.2]} 46... Kd8 {[%clk 0:00:59.7]} 47. Qg8+ {[%clk 0:00:13]}
47... Kc7 {[%clk 0:01:00.8]} 48. Qf7+ {[%clk 0:00:14.4]} 48... Kb6 {[%clk
0:01:01.9]} 49. Be2 {[%clk 0:00:06.1]} 49... Bd4+ {[%clk 0:00:57.2]} 50. Kh1
{[%clk 0:00:05.7]} 50... Qe3 {[%clk 0:00:58]} 51. Qf1 {[%clk 0:00:05]} 51... Qf2
{[%clk 0:00:57.4]} 52. Qxf2 {[%clk 0:00:02.5]} 52... Bxf2 {[%clk 0:00:58.4]} 53.
Kg2 {[%clk 0:00:04.4]} 53... Be1 {[%clk 0:00:57.8]} 54. Kf3 {[%clk 0:00:05.7]}
54... Ka5 {[%clk 0:00:58.6]} 55. h4 {[%clk 0:00:05.9]} 55... Bxh4 {[%clk
0:00:58.6]} 56. g5 {[%clk 0:00:04.6]} 56... Bxg5 {[%clk 0:00:59.3]} 0-1

[Event "*** Titled Tuesday Blitz"]
[Site "Chess.com"]
[Date "2019.04.02"]
[Round "4"]
[White "Yoshkinkot"]
[Black "biostatistician"]
[Result "1-0"]
[WhiteElo "2547"]
[BlackElo "2551"]
[TimeControl "180+2"]
[EndTime "14:50:43 PDT"]
[Termination "Yoshkinkot won by resignation"]

1. e4 {[%clk 0:02:59.2]} 1... e6 {[%clk 0:03:00.5]} 2. d3 {[%clk 0:02:59.9]}
2... d5 {[%clk 0:03:02.4]} 3. Nd2 {[%clk 0:03:01.3]} 3... Nc6 {[%clk 0:03:03.9]}
4. g3 {[%clk 0:03:02.1]} 4... Nf6 {[%clk 0:03:05.3]} 5. Bg2 {[%clk 0:03:03.4]}
5... Bc5 {[%clk 0:03:03.4]} 6. c3 {[%clk 0:03:01.3]} 6... dxe4 {[%clk
0:03:04.2]} 7. Nxe4 {[%clk 0:02:59.8]} 7... Nxe4 {[%clk 0:03:04.5]} 8. Bxe4
{[%clk 0:03:00.7]} 8... Qf6 {[%clk 0:02:53]} 9. d4 {[%clk 0:02:51.7]} 9... Bd6
{[%clk 0:02:53.9]} 10. Nf3 {[%clk 0:02:49.8]} 10... h6 {[%clk 0:02:50.6]} 11. h4
{[%clk 0:02:41.1]} 11... O-O {[%clk 0:02:37.3]} 12. Qd3 {[%clk 0:01:47.3]} 12...
Re8 {[%clk 0:02:07.7]} 13. Be3 {[%clk 0:00:56.6]} 13... e5 {[%clk 0:02:08.4]}
14. d5 {[%clk 0:00:52.5]} 14... Bg4 {[%clk 0:01:51.7]} 15. Bg5 {[%clk
0:00:41.3]} 15... hxg5 {[%clk 0:01:48.5]} 16. hxg5 {[%clk 0:00:41.7]} 16... Qe7
{[%clk 0:01:42.5]} 17. dxc6 {[%clk 0:00:40.2]} 17... bxc6 {[%clk 0:01:43.8]} 18.
g6 {[%clk 0:00:25.3]} 18... Rab8 {[%clk 0:01:30.5]} 19. gxf7+ {[%clk 0:00:20.9]}
19... Qxf7 {[%clk 0:01:29.6]} 20. Ng5 {[%clk 0:00:21.6]} 20... Qf6 {[%clk
0:01:24.5]} 21. Qc4+ {[%clk 0:00:16.3]} 21... Be6 {[%clk 0:01:24]} 22. Nxe6
{[%clk 0:00:16.1]} 22... Qxe6 {[%clk 0:01:24.4]} 23. Qxc6 {[%clk 0:00:14.7]}
23... Kf8 {[%clk 0:01:17]} 24. Rh8+ {[%clk 0:00:11.8]} 24... Ke7 {[%clk
0:01:18.3]} 25. Rxe8+ {[%clk 0:00:11.6]} 25... Rxe8 {[%clk 0:01:20.2]} 26. O-O-O
{[%clk 0:00:12.3]} 26... Qxa2 {[%clk 0:01:19.2]} 27. Bd5 {[%clk 0:00:11.6]}
27... Qa5 {[%clk 0:01:09.7]} 28. f4 {[%clk 0:00:12.6]} 28... Qb6 {[%clk
0:01:07.9]} 29. fxe5 {[%clk 0:00:12.3]} 29... Bxe5 {[%clk 0:01:07.9]} 30. Qc4
{[%clk 0:00:07.5]} 30... Qe3+ {[%clk 0:00:58.8]} 31. Kc2 {[%clk 0:00:08.8]}
31... Qxg3 {[%clk 0:00:54.3]} 32. Qc5+ {[%clk 0:00:08.6]} 32... Bd6 {[%clk
0:00:53.4]} 33. Qxa7 {[%clk 0:00:09.4]} 33... Rf8 {[%clk 0:00:52.1]} 34. Rd2
{[%clk 0:00:08.9]} 34... Rf4 {[%clk 0:00:39.3]} 35. Re2+ {[%clk 0:00:09.5]}
35... Kf6 {[%clk 0:00:37]} 36. Qa8 {[%clk 0:00:09.2]} 36... Qg6+ {[%clk
0:00:27.5]} 37. Kb3 {[%clk 0:00:09.8]} 37... Kg5 {[%clk 0:00:25]} 38. Qd8+
{[%clk 0:00:10.4]} 38... Qf6 {[%clk 0:00:26.2]} 39. Qe8 {[%clk 0:00:11]} 39...
Bc5 {[%clk 0:00:22.8]} 40. Rg2+ {[%clk 0:00:11.3]} 40... Rg4 {[%clk 0:00:24.1]}
41. Rh2 {[%clk 0:00:10.5]} 41... Qb6+ {[%clk 0:00:24.6]} 42. Kc2 {[%clk
0:00:07.5]} 42... Qg6+ {[%clk 0:00:24.7]} 43. Qxg6+ {[%clk 0:00:07.9]} 43...
Kxg6 {[%clk 0:00:26.6]} 44. Kd3 {[%clk 0:00:09.1]} 44... Bd6 {[%clk 0:00:24.2]}
45. Re2 {[%clk 0:00:09.6]} 45... Rg3+ {[%clk 0:00:24.3]} 46. Kc4 {[%clk
0:00:10.5]} 46... Kf6 {[%clk 0:00:25.2]} 47. Kb5 {[%clk 0:00:11.4]} 47... g5
{[%clk 0:00:26.5]} 48. c4 {[%clk 0:00:12.7]} 48... Rb3+ {[%clk 0:00:25.4]} 49.
Kc6 {[%clk 0:00:13.8]} 49... g4 {[%clk 0:00:24.4]} 50. c5 {[%clk 0:00:14.9]}
50... Bf4 {[%clk 0:00:25.3]} 51. Bxb3 {[%clk 0:00:15.7]} 1-0

[Event "*** Titled Tuesday Blitz"]
[Site "Chess.com"]
[Date "2019.04.02"]
[Round "4"]
[White "RayRobson"]
[Black "Shahinyan_ChessMood"]
[Result "1-0"]
[WhiteElo "2847"]
[BlackElo "2608"]
[TimeControl "180+2"]
[EndTime "14:50:48 PDT"]
[Termination "RayRobson won by checkmate"]

1. c4 {[%clk 0:03:01.9]} 1... e6 {[%clk 0:02:59.2]} 2. Nc3 {[%clk 0:03:02.5]}
2... f5 {[%clk 0:02:59.3]} 3. g3 {[%clk 0:02:58.8]} 3... Nf6 {[%clk 0:02:59.7]}
4. Bg2 {[%clk 0:03:00.3]} 4... Be7 {[%clk 0:03:00.9]} 5. d4 {[%clk 0:02:50.8]}
5... d5 {[%clk 0:03:01.3]} 6. Nh3 {[%clk 0:02:47.1]} 6... O-O {[%clk 0:03:01.2]}
7. O-O {[%clk 0:02:48.7]} 7... c6 {[%clk 0:03:01.9]} 8. Rb1 {[%clk 0:02:45.1]}
8... a5 {[%clk 0:02:56.6]} 9. a3 {[%clk 0:02:31.4]} 9... dxc4 {[%clk 0:02:51.8]}
10. b3 {[%clk 0:02:22.7]} 10... cxb3 {[%clk 0:02:43]} 11. Qxb3 {[%clk
0:02:23.5]} 11... Kh8 {[%clk 0:02:41]} 12. Rd1 {[%clk 0:02:19.3]} 12... Nd5
{[%clk 0:02:30.4]} 13. Nf4 {[%clk 0:02:08.5]} 13... Na6 {[%clk 0:02:14.3]} 14.
e4 {[%clk 0:02:00.8]} 14... fxe4 {[%clk 0:01:56.9]} 15. Nxe4 {[%clk 0:01:54.3]}
15... Nac7 {[%clk 0:01:53.2]} 16. Nc5 {[%clk 0:01:12.6]} 16... a4 {[%clk
0:00:52.7]} 17. Qc2 {[%clk 0:01:01.4]} 17... Nxf4 {[%clk 0:00:53.3]} 18. Bxf4
{[%clk 0:01:01.8]} 18... Nd5 {[%clk 0:00:54.6]} 19. Be5 {[%clk 0:00:57.7]} 19...
b6 {[%clk 0:00:45.8]} 20. Nxa4 {[%clk 0:00:47.4]} 20... b5 {[%clk 0:00:39.2]}
21. Nc3 {[%clk 0:00:34.7]} 21... Rxa3 {[%clk 0:00:39.1]} 22. Nxd5 {[%clk
0:00:35]} 22... cxd5 {[%clk 0:00:40.3]} 23. Rxb5 {[%clk 0:00:33.9]} 23... Ba6
{[%clk 0:00:41.3]} 24. Rbb1 {[%clk 0:00:30.6]} 24... Bc4 {[%clk 0:00:41.5]} 25.
Rb2 {[%clk 0:00:23.6]} 25... Bf6 {[%clk 0:00:34.4]} 26. Bf4 {[%clk 0:00:20.1]}
26... Qd7 {[%clk 0:00:23.2]} 27. Bh3 {[%clk 0:00:15.6]} 27... Be7 {[%clk
0:00:20.5]} 28. Re1 {[%clk 0:00:12.7]} 28... Rxf4 {[%clk 0:00:21.2]} 29. Bxe6
{[%clk 0:00:09.2]} 29... Qd6 {[%clk 0:00:18.8]} 30. gxf4 {[%clk 0:00:09.7]}
30... Qxf4 {[%clk 0:00:20.7]} 31. Qf5 {[%clk 0:00:05.4]} 31... Bd6 {[%clk
0:00:13]} 32. Qxf4 {[%clk 0:00:04]} 32... Bxf4 {[%clk 0:00:14.9]} 33. Bf5 {[%clk
0:00:03.2]} 33... g6 {[%clk 0:00:15.3]} 34. Bg4 {[%clk 0:00:02.5]} 34... Kg7
{[%clk 0:00:15.5]} 35. Kg2 {[%clk 0:00:03.7]} 35... h5 {[%clk 0:00:15.9]} 36.
Bf3 {[%clk 0:00:03.7]} 36... Kh6 {[%clk 0:00:15.8]} 37. h3 {[%clk 0:00:04.8]}
37... Ra6 {[%clk 0:00:11.7]} 38. Re8 {[%clk 0:00:02.9]} 38... Kg5 {[%clk
0:00:11.4]} 39. Re7 {[%clk 0:00:03.7]} 39... Rf6 {[%clk 0:00:11.4]} 40. Rd7
{[%clk 0:00:04.1]} 40... Rf5 {[%clk 0:00:05.7]} 41. Rb6 {[%clk 0:00:05.1]} 41...
Bd2 {[%clk 0:00:03.9]} 42. Rg7 {[%clk 0:00:05.7]} 42... Bf1+ {[%clk 0:00:04.9]}
43. Kxf1 {[%clk 0:00:06.4]} 43... Rxf3 {[%clk 0:00:06.2]} 44. Rgxg6+ {[%clk
0:00:06]} 44... Kh4 {[%clk 0:00:07]} 45. Kg2 {[%clk 0:00:06.3]} 45... Rf4 {[%clk
0:00:04.9]} 46. Rgd6 {[%clk 0:00:02.6]} 46... Rxd4 {[%clk 0:00:05]} 47. Rb5
{[%clk 0:00:04.3]} 47... Bf4 {[%clk 0:00:04.1]} 48. Rdxd5 {[%clk 0:00:05.1]}
48... Re4 {[%clk 0:00:05.2]} 49. Rxh5# {[%clk 0:00:05.6]} 1-0

[Event "*** Titled Tuesday Blitz"]
[Site "Chess.com"]
[Date "2019.04.02"]
[Round "4"]
[White "martinmartinez95"]
[Black "Alopekos"]
[Result "1-0"]
[WhiteElo "2562"]
[BlackElo "2483"]
[TimeControl "180+2"]
[EndTime "14:50:50 PDT"]
[Termination "martinmartinez95 won by resignation"]

1. d4 {[%clk 0:03:00.9]} 1... Nf6 {[%clk 0:03:00.5]} 2. c4 {[%clk 0:03:01.2]}
2... e6 {[%clk 0:03:01.6]} 3. Nf3 {[%clk 0:03:01.5]} 3... d5 {[%clk 0:03:02.7]}
4. Nc3 {[%clk 0:03:01.6]} 4... c5 {[%clk 0:03:01.9]} 5. cxd5 {[%clk 0:03:01.8]}
5... cxd4 {[%clk 0:03:02.6]} 6. Qa4+ {[%clk 0:02:32.1]} 6... Bd7 {[%clk
0:02:57.5]} 7. Qxd4 {[%clk 0:02:31.6]} 7... exd5 {[%clk 0:02:59.1]} 8. Nxd5
{[%clk 0:02:26.5]} 8... Qa5+ {[%clk 0:03:00.4]} 9. Nc3 {[%clk 0:02:24.9]} 9...
Nc6 {[%clk 0:03:01.6]} 10. Qe3+ {[%clk 0:02:21.6]} 10... Be7 {[%clk 0:02:58]}
11. Bd2 {[%clk 0:02:19]} 11... O-O {[%clk 0:02:53]} 12. Qg5 {[%clk 0:02:17.1]}
12... Qb6 {[%clk 0:02:39]} 13. Qb5 {[%clk 0:02:15.5]} 13... Qc7 {[%clk
0:02:00.7]} 14. Rc1 {[%clk 0:01:51.9]} 14... h6 {[%clk 0:01:25.3]} 15. e3 {[%clk
0:01:22.9]} 15... Rad8 {[%clk 0:01:02.2]} 16. Qc4 {[%clk 0:01:12.8]} 16... Be6
{[%clk 0:00:59.8]} 17. Qa4 {[%clk 0:01:09.9]} 17... Qb6 {[%clk 0:00:55]} 18. a3
{[%clk 0:00:48]} 18... a6 {[%clk 0:00:40]} 19. Qc2 {[%clk 0:00:45.8]} 19... Bb3
{[%clk 0:00:34.4]} 20. Qb1 {[%clk 0:00:44.8]} 20... Rd7 {[%clk 0:00:34.6]} 21.
Bd3 {[%clk 0:00:25.3]} 21... Rfd8 {[%clk 0:00:32.2]} 22. Bc2 {[%clk 0:00:26.1]}
22... Na5 {[%clk 0:00:27.8]} 23. Rd1 {[%clk 0:00:23]} 23... Bxc2 {[%clk
0:00:12.3]} 24. Qxc2 {[%clk 0:00:23]} 24... Nc4 {[%clk 0:00:13.9]} 25. Bc1
{[%clk 0:00:21.7]} 25... Rxd1+ {[%clk 0:00:10.9]} 26. Nxd1 {[%clk 0:00:22.9]}
26... Qa5+ {[%clk 0:00:12.3]} 27. b4 {[%clk 0:00:22.6]} 27... Qb5 {[%clk
0:00:03.7]} 28. O-O {[%clk 0:00:22.9]} 28... Nb6 {[%clk 0:00:04]} 29. Nc3 {[%clk
0:00:23.7]} 29... Qc4 {[%clk 0:00:05]} 30. Bb2 {[%clk 0:00:24.5]} 30... Rc8
{[%clk 0:00:04.9]} 31. Nd2 {[%clk 0:00:24.8]} 31... Qc6 {[%clk 0:00:04.7]} 32.
Rc1 {[%clk 0:00:20.1]} 32... Nfd5 {[%clk 0:00:04.4]} 33. Nde4 {[%clk 0:00:21.1]}
33... f5 {[%clk 0:00:03.7]} 34. Nc5 {[%clk 0:00:18.4]} 34... Bxc5 {[%clk
0:00:03.9]} 35. Nxd5 {[%clk 0:00:18.8]} 35... Qxd5 {[%clk 0:00:03.2]} 36. bxc5
{[%clk 0:00:19.4]} 36... Nd7 {[%clk 0:00:04.3]} 37. Bd4 {[%clk 0:00:20.6]} 37...
b6 {[%clk 0:00:03.6]} 38. c6 {[%clk 0:00:21.9]} 38... Nc5 {[%clk 0:00:04.8]} 39.
Bxc5 {[%clk 0:00:22.1]} 39... Rxc6 {[%clk 0:00:06]} 40. Qc4 {[%clk 0:00:21.1]}
40... Rxc5 {[%clk 0:00:03.9]} 41. Qxd5+ {[%clk 0:00:22.2]} 41... Rxd5 {[%clk
0:00:05.8]} 42. Kf1 {[%clk 0:00:21]} 42... Rd3 {[%clk 0:00:07]} 43. Rc6 {[%clk
0:00:21.1]} 43... Rxa3 {[%clk 0:00:07.1]} 44. Rxb6 {[%clk 0:00:22.3]} 44... Ra2
{[%clk 0:00:08.6]} 45. g3 {[%clk 0:00:21.8]} 45... Kf7 {[%clk 0:00:09.8]} 46. h4
{[%clk 0:00:22.7]} 46... g6 {[%clk 0:00:05.7]} 47. Kg2 {[%clk 0:00:21.2]} 47...
a5 {[%clk 0:00:07.1]} 48. h5 {[%clk 0:00:22.1]} 48... gxh5 {[%clk 0:00:07.1]}
49. Rxh6 {[%clk 0:00:23]} 49... a4 {[%clk 0:00:08]} 50. Rxh5 {[%clk 0:00:24.4]}
50... Kg6 {[%clk 0:00:09.4]} 51. Rh8 {[%clk 0:00:25.3]} 51... a3 {[%clk
0:00:10.9]} 52. Ra8 {[%clk 0:00:26]} 52... Ra1 {[%clk 0:00:11.9]} 53. Kf3 {[%clk
0:00:27.3]} 53... a2 {[%clk 0:00:12.4]} 54. Kf4 {[%clk 0:00:28.6]} 54... Kf6
{[%clk 0:00:08.5]} 55. Ra6+ {[%clk 0:00:29]} 55... Ke7 {[%clk 0:00:09.2]} 56.
Kxf5 {[%clk 0:00:28]} 1-0

[Event "*** Titled Tuesday Blitz"]
[Site "Chess.com"]
[Date "2019.04.02"]
[Round "4"]
[White "martinjogstad99"]
[Black "Eliwood44"]
[Result "0-1"]
[WhiteElo "2211"]
[BlackElo "2222"]
[TimeControl "180+2"]
[EndTime "14:50:50 PDT"]
[Termination "Eliwood44 won by resignation"]

1. d4 {[%clk 0:03:01.9]} 1... Nf6 {[%clk 0:02:57.8]} 2. c4 {[%clk 0:03:02.6]}
2... e6 {[%clk 0:02:58.8]} 3. g3 {[%clk 0:03:03]} 3... d5 {[%clk 0:02:59.7]} 4.
Nf3 {[%clk 0:03:03.7]} 4... Be7 {[%clk 0:03:01.1]} 5. Bg2 {[%clk 0:03:04.2]}
5... O-O {[%clk 0:03:02.6]} 6. O-O {[%clk 0:03:05.4]} 6... dxc4 {[%clk
0:03:02.6]} 7. Ne5 {[%clk 0:03:07]} 7... Nc6 {[%clk 0:02:59.1]} 8. Nxc6 {[%clk
0:03:07.9]} 8... bxc6 {[%clk 0:02:58.9]} 9. Na3 {[%clk 0:03:09.1]} 9... Bxa3
{[%clk 0:02:57.9]} 10. bxa3 {[%clk 0:03:11]} 10... Nd5 {[%clk 0:02:55.8]} 11.
Qa4 {[%clk 0:03:09.5]} 11... Nb6 {[%clk 0:02:55.2]} 12. Qa5 {[%clk 0:02:58.4]}
12... Bb7 {[%clk 0:02:51.3]} 13. a4 {[%clk 0:02:54.9]} 13... Qxd4 {[%clk
0:02:47.2]} 14. Ba3 {[%clk 0:02:53.4]} 14... Rfd8 {[%clk 0:02:44.3]} 15. e3
{[%clk 0:02:29.7]} 15... Qd3 {[%clk 0:02:31]} 16. Qc5 {[%clk 0:02:16.5]} 16...
Nxa4 {[%clk 0:02:24.1]} 17. Qb4 {[%clk 0:02:04.8]} 17... Nb6 {[%clk 0:02:22.2]}
18. Qc5 {[%clk 0:01:49.9]} 18... Rd5 {[%clk 0:02:13]} 19. Bxd5 {[%clk
0:01:46.6]} 19... Qxd5 {[%clk 0:02:11.1]} 20. Rfd1 {[%clk 0:01:42.6]} 20... Qxc5
{[%clk 0:02:09.2]} 21. Bxc5 {[%clk 0:01:44.5]} 21... Nd5 {[%clk 0:02:08]} 22.
Rac1 {[%clk 0:01:41.4]} 22... Ba6 {[%clk 0:02:08.5]} 23. e4 {[%clk 0:01:38.8]}
23... Nf6 {[%clk 0:02:09.7]} 24. f3 {[%clk 0:01:39]} 24... h5 {[%clk 0:02:08.4]}
25. Kf2 {[%clk 0:01:38.8]} 25... Rb8 {[%clk 0:02:03.4]} 26. Rb1 {[%clk
0:01:34.6]} 26... Rb5 {[%clk 0:02:03.8]} 27. Bxa7 {[%clk 0:01:26.1]} 27... Ra5
{[%clk 0:01:58.8]} 28. Be3 {[%clk 0:01:16.2]} 28... Rxa2+ {[%clk 0:01:52.5]} 29.
Rd2 {[%clk 0:01:17.3]} 29... Ra3 {[%clk 0:01:49]} 30. Rb8+ {[%clk 0:00:58.8]}
30... Kh7 {[%clk 0:01:49]} 31. Ra8 {[%clk 0:00:58.5]} 31... c3 {[%clk
0:01:46.4]} 32. Rc2 {[%clk 0:00:57.9]} 32... e5 {[%clk 0:01:31.7]} 33. Bc5
{[%clk 0:00:51.9]} 33... Ra5 {[%clk 0:01:26.2]} 34. Bb4 {[%clk 0:00:43.2]} 34...
Rb5 {[%clk 0:01:24.2]} 35. Bxc3 {[%clk 0:00:41.9]} 35... Bb7 {[%clk 0:01:25.2]}
36. Rb8 {[%clk 0:00:40.6]} 36... Nd7 {[%clk 0:01:26.4]} 37. Rd8 {[%clk
0:00:32.6]} 37... Nc5 {[%clk 0:01:26.3]} 38. Rb2 {[%clk 0:00:25]} 38... f6
{[%clk 0:01:23.6]} 39. Rxb5 {[%clk 0:00:20.5]} 39... cxb5 {[%clk 0:01:25.5]} 40.
Bb4 {[%clk 0:00:20.8]} 40... Ne6 {[%clk 0:01:24.1]} 41. Rb8 {[%clk 0:00:21.9]}
41... Bc6 {[%clk 0:01:25.2]} 42. Ke3 {[%clk 0:00:21.8]} 42... Kg6 {[%clk
0:01:24.1]} 43. Ba5 {[%clk 0:00:20.6]} 43... Bd7 {[%clk 0:01:21.3]} 44. Bxc7
{[%clk 0:00:17.9]} 44... Nxc7 {[%clk 0:01:19.4]} 45. Rb7 {[%clk 0:00:19.1]}
45... Ne6 {[%clk 0:01:14.8]} 46. Rxd7 {[%clk 0:00:19.5]} 46... Nd4 {[%clk
0:01:15.9]} 47. Rb7 {[%clk 0:00:17.4]} 47... Kh6 {[%clk 0:01:14]} 48. h4 {[%clk
0:00:18.1]} 48... g6 {[%clk 0:01:14]} 49. Rb6 {[%clk 0:00:18.9]} 49... Kg7
{[%clk 0:01:12.8]} 50. Rb7+ {[%clk 0:00:19.7]} 50... Kh6 {[%clk 0:01:13.1]} 51.
f4 {[%clk 0:00:19.1]} 51... b4 {[%clk 0:01:07.4]} 52. Kd3 {[%clk 0:00:10.6]}
52... b3 {[%clk 0:01:07.4]} 53. fxe5 {[%clk 0:00:11.3]} 53... fxe5 {[%clk
0:01:09.3]} 54. Kc3 {[%clk 0:00:09.7]} 54... Ne2+ {[%clk 0:01:07.6]} 55. Kxb3
{[%clk 0:00:10.4]} 55... Nxg3 {[%clk 0:01:09.1]} 56. Rb4 {[%clk 0:00:10.2]}
56... g5 {[%clk 0:01:10]} 57. hxg5+ {[%clk 0:00:11.1]} 57... Kxg5 {[%clk
0:01:11.2]} 58. Kc3 {[%clk 0:00:11.7]} 58... h4 {[%clk 0:01:08.5]} 59. Kd3
{[%clk 0:00:13.1]} 59... h3 {[%clk 0:01:09.7]} 60. Rb2 {[%clk 0:00:09.4]} 60...
Kf4 {[%clk 0:01:07.9]} 61. Rf2+ {[%clk 0:00:10.2]} 61... Kg4 {[%clk 0:01:08.5]}
62. Ke3 {[%clk 0:00:10.1]} 62... h2 {[%clk 0:01:08.2]} 63. Rxh2 {[%clk
0:00:03.3]} 63... Nf1+ {[%clk 0:01:09.4]} 64. Kd3 {[%clk 0:00:03.3]} 64... Nxh2
{[%clk 0:01:11.3]} 65. Kc4 {[%clk 0:00:04.7]} 65... Kf4 {[%clk 0:01:12.6]} 66.
Kd5 {[%clk 0:00:06.2]} 66... Nf3 {[%clk 0:01:13.6]} 0-1